bitfinex/quotes_BTCUSD_20251015
["timestamp","ask_amount","ask_price","bid_price","bid_amount"]
[1760566484277,0.00070051,111170.0,111160.0,1.54487817]
[1760566484989,0.00070051,111170.0,111160.0,1.43175817]
[1760566485207,0.00070051,111170.0,111160.0,1.54487817]
[1760566486495,0.00070051,111170.0,111160.0,1.43175817]
[1760566486717,0.00070051,111170.0,111160.0,1.54487817]
[1760566486925,0.00128798,111170.0,111160.0,1.96613406]
[1760566487380,0.00128798,111170.0,111160.0,1.85301406]
[1760566487590,0.00128798,111170.0,111160.0,1.96613406]
[1760566488307,0.00128798,111170.0,111160.0,1.85201406]
[1760566488571,0.00128798,111170.0,111160.0,1.96513406]
[1760566488770,0.00128798,111170.0,111160.0,1.96613406]
[1760566489204,0.00128798,111170.0,111160.0,1.88003713]
[1760566489396,0.00128798,111170.0,111160.0,1.99215713]
[1760566489596,0.00128798,111170.0,111160.0,1.49496352]
[1760566489950,0.00128798,111170.0,111160.0,0.7248163]
[1760566490152,0.00128798,111170.0,111160.0,1.49496352]
[1760566490353,0.00128798,111170.0,111160.0,1.98106045]
[1760566490555,0.00128798,111170.0,111160.0,2.48106045]
[1760566491374,0.00128798,111170.0,111160.0,2.36794045]
[1760566491589,0.00128798,111170.0,111160.0,2.50808544]
[1760566492844,0.00128798,111170.0,111160.0,2.39496544]
[1760566493071,0.00128798,111170.0,111160.0,2.50808544]
[1760566493980,0.00128798,111170.0,111160.0,1.73793822]
[1760566494121,0.00128798,111170.0,111160.0,2.50808544]
[1760566496367,0.00128798,111170.0,111160.0,2.39496544]
[1760566496609,0.00128798,111170.0,111160.0,2.50804544]
[1760566496963,0.00128798,111170.0,111160.0,2.48102045]
[1760566501025,0.00128798,111170.0,111160.0,2.36794045]
[1760566501231,0.00128798,111170.0,111160.0,2.48102045]
[1760566501437,0.00128798,111170.0,111160.0,2.09551335]
[1760566501854,0.00128798,111170.0,111160.0,1.98243335]
[1760566502268,0.00128798,111170.0,111160.0,2.09551335]
[1760566502459,0.00128798,111170.0,111160.0,1.98243335]
[1760566503472,0.00128798,111170.0,111160.0,2.09551335]
[1760566503631,0.00128798,111170.0,111160.0,1.98243335]
[1760566503838,0.00128798,111170.0,111160.0,2.48015347]
[1760566504045,0.00128798,111170.0,111160.0,2.88015347]
[1760566504241,0.00128798,111170.0,111160.0,2.76707347]
[1760566504448,0.00128798,111170.0,111160.0,2.88015347]
[1760566504674,0.00128798,111170.0,111160.0,2.49551335]
[1760566504878,0.0002,111180.0,111170.0,0.95608693]
[1760566505078,0.00035006,111180.0,111170.0,2.33922997]
[1760566505281,0.0002,111190.0,111180.0,1.01607074]
[1760566505485,0.0002,111190.0,111180.0,1.8750411]
[1760566506078,0.0002,111190.0,111180.0,1.9881211]
[1760566506288,0.0002,111190.0,111180.0,1.8750411]
[1760566506484,0.0002,111190.0,111180.0,1.9881211]
[1760566506967,0.0002,111190.0,111180.0,1.8760411]
[1760566507182,0.0002,111190.0,111180.0,1.9891211]
[1760566507609,0.0002,111190.0,111180.0,1.9118821]
[1760566507815,0.0002,111190.0,111180.0,2.0249621]
[1760566508651,0.0002,111190.0,111180.0,2.0259621]
[1760566510127,0.0002,111190.0,111180.0,1.8770411]
[1760566510369,0.0002,111190.0,111180.0,1.9901211]
[1760566510610,0.00137467,111190.0,111180.0,1.8770411]
[1760566510860,0.00137467,111190.0,111180.0,1.9901211]
[1760566511343,0.00137467,111190.0,111180.0,2.3301211]
[1760566511561,1e-08,111190.0,111180.0,2.6286993]
[1760566511773,1e-08,111190.0,111180.0,2.7417793]
[1760566512007,1e-08,111190.0,111180.0,2.6286993]
[1760566512220,1e-08,111190.0,111180.0,2.7417793]
[1760566512438,1e-08,111190.0,111180.0,2.7766993]
[1760566512649,1e-08,111190.0,111180.0,2.50613918]
[1760566513065,1e-08,111190.0,111180.0,2.50813918]
[1760566514335,1e-08,111190.0,111180.0,2.8927793]
[1760566514759,1e-08,111190.0,111180.0,2.8927393]
[1760566514976,1e-08,111190.0,111180.0,2.50809918]
[1760566515425,1e-08,111190.0,111180.0,2.8927393]
[1760566517209,1e-08,111190.0,111180.0,3.2796993]
[1760566517444,1e-08,111190.0,111180.0,3.3927393]
[1760566517658,1e-08,111190.0,111180.0,3.2437393]
[1760566518083,1e-08,111190.0,111180.0,3.1306993]
[1760566518311,1e-08,111190.0,111180.0,3.20755702]
[1760566518529,1e-08,111190.0,111180.0,3.2437393]
[1760566518998,1e-08,111190.0,111180.0,3.1306993]
[1760566519180,1e-08,111190.0,111180.0,3.2437393]
[1760566519413,1e-08,111190.0,111180.0,3.1306993]
[1760566520050,1e-08,111190.0,111180.0,3.2437393]
[1760566521132,1e-08,111190.0,111180.0,3.1306993]
[1760566521372,0.21483282,111250.0,111230.0,0.1798076]
[1760566521589,0.21498288,111250.0,111240.0,0.11304]
[1760566521800,0.17979144,111240.0,111230.0,0.26949772]
[1760566522018,0.20680446,111240.0,111230.0,0.38253772]
[1760566522262,0.20680446,111240.0,111230.0,0.26949772]
[1760566522494,0.20680446,111240.0,111230.0,0.38253772]
[1760566522934,0.20680446,111240.0,111230.0,0.26949772]
[1760566523160,0.20680446,111240.0,111230.0,0.38253772]
[1760566523813,0.20680446,111240.0,111230.0,0.88253772]
[1760566524030,0.59144458,111240.0,111230.0,0.5]
[1760566524244,0.9760847,111240.0,111230.0,0.5]
[1760566524462,6.2845657,111240.0,111230.0,0.5]
[1760566524683,6.44669428,111240.0,111230.0,0.5]
[1760566524896,6.41038002,111240.0,111230.0,0.5]
[1760566525561,6.0257399,111240.0,111230.0,0.5]
[1760566526490,6.0267399,111240.0,111230.0,0.5]
[1760566526704,6.41138002,111240.0,111230.0,0.5]
[1760566527122,6.41431513,111240.0,111230.0,0.5]
[1760566527557,6.45049741,111240.0,111230.0,0.5]
[1760566530139,6.47467952,111240.0,111230.0,0.5]
[1760566530583,0.17982377,111220.0,111210.0,0.0717521]
[1760566530792,5.96263501,111220.0,111210.0,0.0717521]
[1760566531253,5.14832094,111210.0,111190.0,0.0717521]
[1760566531439,0.17985611,111200.0,111190.0,0.0717521]
[1760566531714,0.17985611,111200.0,111190.0,0.1847921]
[1760566531923,0.17985611,111200.0,111180.0,0.18888288]
[1760566532155,0.20688151,111200.0,111190.0,0.11304]
[1760566532353,0.17987229,111190.0,111180.0,0.278573]
[1760566532578,0.20688151,111200.0,111180.0,0.391613]
[1760566532808,0.20688151,111200.0,111190.0,0.17987229]
[1760566533016,0.20688151,111200.0,111190.0,0.29291229]
[1760566533671,0.0270254,111200.0,111190.0,0.29291229]
[1760566534145,0.0270254,111200.0,111190.0,0.67755241]
[1760566534353,0.0270254,111200.0,111190.0,0.67855241]
[1760566534562,0.0270254,111200.0,111190.0,0.67755241]
[1760566534774,0.0270254,111200.0,111190.0,0.29291229]
[1760566535214,0.0270254,111200.0,111190.0,0.17987229]
[1760566535431,0.0270254,111200.0,111190.0,0.29291229]
[1760566536632,0.0270254,111200.0,111190.0,0.17987229]
[1760566536876,0.0270254,111200.0,111190.0,0.76724253]
[1760566537532,0.0270254,111200.0,111190.0,0.65420253]
[1760566537756,0.0270254,111200.0,111190.0,0.76724253]
[1760566538417,0.0270254,111200.0,111190.0,0.65520253]
[1760566538621,0.0270254,111200.0,111190.0,0.76824253]
[1760566539046,4.968481,111210.0,111200.0,0.17984405]
[1760566539250,0.00015004,111210.0,111200.0,0.17984405]
[1760566539456,0.17998998,111210.0,111200.0,0.17984405]
[1760566539658,0.17998998,111210.0,111200.0,0.29288405]
[1760566539859,0.17998998,111210.0,111200.0,0.17984405]
[1760566540092,0.17998998,111210.0,111200.0,0.29288405]
[1760566540292,0.00015004,111210.0,111200.0,0.29288405]
[1760566540497,0.00015004,111210.0,111200.0,0.17984405]
[1760566540685,0.00015004,111210.0,111200.0,0.29288405]
[1760566540933,0.17998998,111210.0,111200.0,0.29288405]
[1760566542658,0.17998998,111210.0,111200.0,0.17984405]
[1760566542842,0.17998998,111210.0,111200.0,0.29288405]
[1760566543039,0.0013244,111210.0,111200.0,0.29288405]
[1760566543647,0.18116434,111210.0,111200.0,0.29288405]
[1760566545290,0.18116434,111210.0,111200.0,0.17984405]
[1760566545494,0.0013244,111210.0,111200.0,0.29288405]
[1760566545698,0.0013244,111210.0,111200.0,0.76721429]
[1760566546051,0.0013244,111210.0,111200.0,1.29138697]
[1760566547248,0.0013244,111210.0,111200.0,1.29238697]
[1760566547449,0.0013244,111210.0,111200.0,1.17934697]
[1760566547643,0.0013244,111210.0,111200.0,1.29238697]
[1760566548322,0.0013244,111210.0,111200.0,1.29221532]
[1760566549808,0.17982503,111220.0,111210.0,0.17983994]
[1760566550219,0.18041211,111220.0,111210.0,0.17983994]
[1760566550852,0.00058708,111220.0,111210.0,0.17983994]
[1760566551268,0.00058708,111220.0,111210.0,0.29287994]
[1760566551926,0.00058708,111220.0,111210.0,0.17983994]
[1760566552128,0.00058708,111220.0,111210.0,0.29287994]
[1760566552365,0.00058708,111220.0,111210.0,0.67734841]
[1760566552543,0.00058708,111220.0,111210.0,0.56430841]
[1760566552744,0.00058708,111220.0,111210.0,0.29287994]
[1760566552949,0.00058708,111220.0,111210.0,0.67734841]
[1760566553400,0.00058708,111220.0,111210.0,0.29287994]
[1760566554217,0.18041085,111220.0,111210.0,0.29287994]
[1760566554438,0.00058708,111220.0,111210.0,0.29287994]
[1760566555416,0.00058708,111220.0,111210.0,0.67734841]
[1760566555621,0.00058708,111220.0,111210.0,0.76703853]
[1760566555862,0.00058708,111220.0,111210.0,0.65399853]
[1760566556070,0.00058708,111220.0,111210.0,0.76703853]
[1760566557135,0.00058708,111220.0,111210.0,0.38257006]
[1760566557378,0.00058708,111220.0,111210.0,0.65399853]
[1760566557575,0.00058708,111220.0,111210.0,0.76703853]
[1760566558344,0.00058708,111220.0,111210.0,0.76699853]
[1760566558860,0.00058708,111220.0,111210.0,0.65399853]
[1760566559069,0.00058708,111220.0,111210.0,0.76699853]
[1760566559464,0.00058708,111220.0,111210.0,0.65399853]
[1760566559653,0.00058708,111220.0,111210.0,0.76699853]
[1760566561538,0.00058708,111220.0,111210.0,0.76694304]
[1760566562371,0.00058708,111220.0,111210.0,0.65394304]
[1760566562579,0.17983994,111210.0,111190.0,1.2]
[1760566562806,0.17983994,111210.0,111190.0,0.88984016]
[1760566562807,0.17985611,111200.0,111190.0,0.88984016]
[1760566563014,0.17985611,111200.0,111190.0,1.18271245]
[1760566563225,0.17985611,111200.0,111190.0,0.38271245]
[1760566563461,0.17985611,111200.0,111190.0,0.20284016]
[1760566563666,0.56426909,111200.0,111190.0,0.00015004]
[1760566563872,0.94868207,111200.0,111190.0,0.11315004]
[1760566564296,0.56426909,111200.0,111190.0,0.11315004]
[1760566565186,0.94868207,111200.0,111190.0,0.00015004]
[1760566565416,1.28868207,111200.0,111190.0,0.11315004]
[1760566565825,1.28868207,111200.0,111190.0,0.00015004]
[1760566566036,1.28868207,111200.0,111190.0,0.11315004]
[1760566566673,0.90426909,111200.0,111190.0,0.00015004]
[1760566566884,0.51985611,111200.0,111190.0,0.11315004]
[1760566567116,0.90426909,111200.0,111190.0,0.11315004]
[1760566567322,0.90426909,111200.0,111190.0,0.00015004]
[1760566567527,0.90426909,111200.0,111190.0,0.11315004]
[1760566568768,0.90426909,111200.0,111190.0,0.00015004]
[1760566568973,0.90426909,111200.0,111190.0,0.11315004]
[1760566570257,1.28868207,111200.0,111190.0,0.11315004]
[1760566570475,0.90426909,111200.0,111190.0,0.11315004]
[1760566571819,0.90426909,111200.0,111190.0,0.11319004]
[1760566572645,0.90426909,111200.0,111190.0,0.00015004]
[1760566572854,0.90426909,111200.0,111190.0,0.11319004]
[1760566575615,0.56426909,111200.0,111190.0,0.11319004]
[1760566577377,0.17985611,111200.0,111190.0,0.11319004]
[1760566577588,0.51985611,111200.0,111190.0,0.11319004]
[1760566577793,0.90426909,111200.0,111190.0,0.00015004]
[1760566578008,0.90426909,111200.0,111190.0,0.11319004]
[1760566578457,0.90426909,111200.0,111190.0,0.00015004]
[1760566578672,1.28868207,111200.0,111190.0,0.00015004]
[1760566578887,0.90426909,111200.0,111190.0,0.11319004]
[1760566580411,0.90426909,111200.0,111190.0,0.00015004]
[1760566580625,0.90426909,111200.0,111190.0,0.11319004]
[1760566582347,0.90426909,111200.0,111190.0,0.00015004]
[1760566582518,1.28868207,111200.0,111190.0,0.00015004]
[1760566582723,1.28868207,111200.0,111190.0,0.11319004]
[1760566583594,0.90426909,111200.0,111190.0,0.11319004]
[1760566584036,1.28868207,111200.0,111190.0,0.11319004]
[1760566584722,1.2310237,111200.0,111190.0,0.11319004]
[1760566584928,1.2310237,111200.0,111190.0,0.00015004]
[1760566585169,1.2310237,111200.0,111190.0,0.11319004]
[1760566585395,0.84661072,111200.0,111190.0,0.11319004]
[1760566586369,0.46219774,111200.0,111190.0,0.11319004]
[1760566586790,0.84661072,111200.0,111190.0,0.11319004]
[1760566587038,0.84661072,111200.0,111190.0,0.00015004]
[1760566587262,0.84661072,111200.0,111190.0,0.11319004]
[1760566587697,0.84661072,111200.0,111190.0,0.00015004]
[1760566587872,0.84661072,111200.0,111190.0,0.11319004]
[1760566589494,0.84661072,111200.0,111190.0,0.00015004]
[1760566589681,0.84661072,111200.0,111190.0,0.11319004]
[1760566590304,0.84661072,111200.0,111190.0,0.00015004]
[1760566590515,1.2310237,111200.0,111190.0,0.00015004]
[1760566590722,6.28919482,111200.0,111190.0,0.00015004]
[1760566593217,6.29762688,111200.0,111190.0,0.00015004]
[1760566594661,6.31705457,111200.0,111190.0,0.00015004]
[1760566597548,5.54822861,111200.0,111190.0,0.00015004]
[1760566597754,6.31705457,111200.0,111190.0,0.00015004]
[1760566599474,6.34408423,111200.0,111190.0,0.00015004]
[1760566599684,6.32908423,111200.0,111190.0,0.00015004]
[1760566605361,6.34594833,111200.0,111190.0,0.00015004]
[1760566606226,5.57712237,111200.0,111190.0,0.00015004]
[1760566606454,0.4742274,111200.0,111190.0,0.00015004]
[1760566606664,0.4742274,111200.0,111190.0,0.29302233]
[1760566607098,0.85864038,111200.0,111190.0,0.11315004]
[1760566607485,0.85864038,111200.0,111190.0,0.00015004]
[1760566607691,0.85864038,111200.0,111190.0,0.11315004]
[1760566608140,6.30122448,111200.0,111190.0,0.00015004]
[1760566608360,6.32908377,111200.0,111190.0,0.00015004]
[1760566608576,6.73036368,111200.0,111190.0,0.00015004]
[1760566608778,6.87954596,111200.0,111190.0,0.00015004]
[1760566609210,6.87954643,111200.0,111190.0,0.00015004]
[1760566609426,6.88054643,111200.0,111190.0,0.00015004]
[1760566609839,5.61430749,111200.0,111190.0,0.00015004]
[1760566610002,6.38313345,111200.0,111190.0,0.00015004]
[1760566610206,6.45994737,111200.0,111190.0,0.00015004]
[1760566610436,6.34694737,111200.0,111190.0,0.00015004]
[1760566612862,6.38312965,111200.0,111190.0,0.00015004]
[1760566613266,6.49612965,111200.0,111190.0,0.00015004]
[1760566613513,6.38312965,111200.0,111190.0,0.00015004]
[1760566613718,5.57812141,111200.0,111190.0,0.00015004]
[1760566613862,6.33008492,111200.0,111190.0,0.00015004]
[1760566615157,6.32908492,111200.0,111190.0,0.00015004]
[1760566616270,0.4742274,111200.0,111190.0,0.18002233]
[1760566616451,0.85864038,111200.0,111190.0,0.18002233]
[1760566616613,0.85864038,111200.0,111190.0,0.29306233]
[1760566617020,0.85864038,111200.0,111190.0,0.11319004]
[1760566617408,0.85864038,111200.0,111190.0,0.11315004]
[1760566620525,6.21153436,111200.0,111190.0,0.00015004]
[1760566620695,6.21153436,111200.0,111190.0,0.11315004]
[1760566620888,6.21153436,111200.0,111190.0,0.00015004]
[1760566621205,6.21153436,111200.0,111190.0,0.11315004]
[1760566623360,6.30122448,111200.0,111190.0,0.00015004]
[1760566623531,5.91724131,111200.0,111190.0,0.00015004]
[1760566623767,5.93666001,111200.0,111190.0,0.00015004]
[1760566624783,5.93766001,111200.0,111190.0,0.00015004]
[1760566625830,5.53339852,111200.0,111190.0,0.00015004]
[1760566626044,5.91824131,111200.0,111190.0,0.00015004]
[1760566626255,5.91824131,111200.0,111190.0,0.29302233]
[1760566626256,0.20788577,111200.0,111190.0,0.29302233]
[1760566626473,0.001,111200.0,111190.0,0.76755524]
[1760566626699,0.001,111200.0,111190.0,0.26971245]
[1760566626905,0.001,111200.0,111190.0,0.38271245]
[1760566627316,0.001,111200.0,111190.0,0.26971245]
[1760566627530,0.001,111200.0,111190.0,0.38271245]
[1760566627733,0.20686432,111210.0,111200.0,0.17985611]
[1760566628915,0.20686432,111210.0,111200.0,0.113]
[1760566629331,0.20686432,111210.0,111190.0,0.27071245]
[1760566629540,0.20686432,111210.0,111200.0,0.113]
[1760566629741,0.20686432,111210.0,111200.0,0.29285611]
[1760566629941,0.20686432,111210.0,111200.0,0.17985611]
[1760566630160,0.20686432,111210.0,111200.0,0.29285611]
[1760566630858,0.20686288,111210.0,111200.0,0.17985611]
[1760566631068,0.20686288,111210.0,111200.0,0.29285611]
[1760566631541,0.20686288,111210.0,111190.0,0.26971245]
[1760566631747,0.59170567,111210.0,111190.0,0.26970791]
[1760566631948,0.17985611,111200.0,111190.0,0.00015004]
[1760566632152,0.17985611,111200.0,111190.0,0.29302233]
[1760566632369,0.17985611,111200.0,111190.0,0.18002233]
[1760566632635,0.17985611,111200.0,111190.0,0.29302233]
[1760566633197,0.17985611,111200.0,111190.0,0.18002233]
[1760566633407,0.17985611,111200.0,111190.0,0.29302233]
[1760566633822,0.17985611,111200.0,111190.0,0.18002233]
[1760566634023,0.17985611,111200.0,111190.0,0.29402233]
[1760566634589,0.59170567,111210.0,111200.0,0.17985611]
[1760566634797,4.968481,111200.0,111190.0,0.18102233]
[1760566635009,4.968481,111200.0,111190.0,0.29402233]
[1760566635547,4.968481,111200.0,111190.0,0.18102233]
[1760566635755,4.968481,111200.0,111190.0,0.29402233]
[1760566636156,4.968481,111200.0,111190.0,0.18002233]
[1760566636379,4.968481,111200.0,111190.0,0.29302233]
[1760566636999,0.02702565,111200.0,111190.0,0.29402233]
[1760566637751,0.02702565,111200.0,111190.0,0.18102233]
[1760566638449,0.02702565,111200.0,111190.0,0.29402233]
[1760566638929,0.59172455,111200.0,111190.0,0.00115004]
[1760566639185,5.90020555,111200.0,111190.0,0.00115004]
[1760566639753,5.90020555,111200.0,111190.0,0.11315004]
[1760566640935,5.90120555,111200.0,111190.0,0.11315004]
[1760566641612,5.90120555,111200.0,111190.0,0.00015004]
[1760566642449,5.90120555,111200.0,111190.0,0.11315004]
[1760566643327,5.90120555,111200.0,111190.0,0.00015004]
[1760566643536,5.90120555,111200.0,111190.0,0.11315004]
[1760566644362,5.90120555,111200.0,111190.0,0.00015004]
[1760566644574,5.99089567,111200.0,111190.0,0.00015004]
[1760566650567,6.02707795,111200.0,111190.0,0.00015004]
[1760566651009,6.14007795,111200.0,111190.0,0.00015004]
[1760566651216,6.02707795,111200.0,111190.0,0.00015004]
[1760566651425,6.14007795,111200.0,111190.0,0.00015004]
[1760566652510,6.02707795,111200.0,111190.0,0.00015004]
[1760566654679,6.14007795,111200.0,111190.0,0.00015004]
[1760566654892,6.1594597,111200.0,111190.0,0.00015004]
[1760566655105,6.1846965,111200.0,111190.0,0.00015004]
[1760566657086,6.18469081,111200.0,111190.0,0.00015004]
[1760566657512,6.05487225,111200.0,111190.0,0.00015004]
[1760566657734,6.16787225,111200.0,111190.0,0.00015004]
[1760566659021,6.05487225,111200.0,111190.0,0.00015004]
[1760566659238,5.99089567,111200.0,111190.0,0.00015004]
[1760566659684,6.01027039,111200.0,111190.0,0.00015004]
[1760566662105,5.99089567,111200.0,111190.0,0.00015004]
[1760566665290,5.90120555,111200.0,111190.0,0.00015004]
[1760566665492,5.90120555,111200.0,111190.0,0.18002233]
[1760566665709,5.69432379,111200.0,111190.0,0.00015004]
[1760566665915,5.90120927,111200.0,111190.0,0.00015004]
[1760566670016,5.90120927,111200.0,111190.0,0.11315004]
[1760566670433,5.90120927,111200.0,111190.0,0.00015004]
[1760566670605,5.90120927,111200.0,111190.0,0.11315004]
[1760566671017,5.90120927,111200.0,111190.0,0.00015004]
[1760566671228,5.90120927,111200.0,111190.0,0.11315004]
[1760566674063,5.90120927,111200.0,111190.0,0.18002233]
[1760566674343,5.90120927,111200.0,111190.0,0.11315004]
[1760566675126,5.51636648,111200.0,111190.0,0.11315004]
[1760566675394,0.341,111200.0,111190.0,0.29302233]
[1760566675664,0.18085611,111200.0,111190.0,0.18002233]
[1760566675959,0.52085611,111200.0,111190.0,0.18002233]
[1760566676209,0.34,111200.0,111190.0,0.29302233]
[1760566676692,0.51985611,111200.0,111190.0,0.29302233]
[1760566677189,0.34,111200.0,111190.0,0.29302233]
[1760566677424,0.20686593,111210.0,111200.0,0.17985611]
[1760566677425,0.34,111210.0,111200.0,0.17985611]
[1760566677671,0.51983994,111210.0,111200.0,0.17985611]
[1760566678353,0.34,111210.0,111200.0,0.17985611]
[1760566679069,0.51983994,111210.0,111200.0,0.17985611]
[1760566679922,0.51983994,111210.0,111200.0,0.29285611]
[1760566681980,0.51983994,111210.0,111190.0,0.70419501]
[1760566682242,0.17985611,111200.0,111190.0,0.00015004]
[1760566682455,0.17985611,111200.0,111190.0,0.18002233]
[1760566682684,0.17985611,111200.0,111190.0,0.29302233]
[1760566682914,0.17985611,111200.0,111190.0,0.11315004]
[1760566683128,5.5331799,111200.0,111190.0,0.11315004]
[1760566683343,5.5331799,111200.0,111190.0,0.00015004]
[1760566683593,5.5331799,111200.0,111190.0,0.29302233]
[1760566683594,5.14833711,111200.0,111190.0,0.29302233]
[1760566684028,0.17985611,111200.0,111190.0,0.29302233]
[1760566684281,4.968481,111200.0,111190.0,0.29302233]
[1760566684706,4.968481,111200.0,111190.0,0.18002233]
[1760566684918,0.17985611,111200.0,111190.0,0.18002233]
[1760566685349,0.17985611,111200.0,111190.0,0.29298233]
[1760566686094,0.17985611,111200.0,111190.0,0.18002233]
[1760566686601,0.17985611,111200.0,111190.0,0.29298233]
[1760566687227,5.14833711,111200.0,111190.0,0.18002233]
[1760566687458,0.17985611,111200.0,111190.0,0.29298233]
[1760566688722,0.93149384,111210.0,111190.0,0.29298233]
[1760566688934,5.51534768,111210.0,111200.0,0.17985611]
[1760566689140,5.8729481,111210.0,111200.0,0.29281611]
[1760566689782,5.8729481,111210.0,111200.0,0.17985611]
[1760566690228,5.8739481,111210.0,111200.0,0.29281611]
[1760566690675,5.8729481,111210.0,111200.0,0.29281611]
[1760566690881,5.8729481,111210.0,111200.0,0.17985611]
[1760566691064,5.8739481,111210.0,111200.0,0.29281611]
[1760566691483,5.8739481,111210.0,111200.0,0.17985611]
[1760566691694,5.8739481,111210.0,111200.0,0.29281611]
[1760566692062,5.8739481,111210.0,111200.0,0.17985611]
[1760566692609,5.8739481,111210.0,111200.0,0.29281611]
[1760566693013,5.5339481,111210.0,111200.0,0.17985611]
[1760566693245,5.5339481,111210.0,111200.0,0.29281611]
[1760566693861,5.5339481,111210.0,111200.0,0.17985611]
[1760566694071,5.5339481,111210.0,111200.0,0.29281611]
[1760566694285,5.5339481,111210.0,111200.0,0.17985611]
[1760566694947,5.5339481,111210.0,111200.0,0.29281611]
[1760566695352,5.5339481,111210.0,111200.0,0.17985611]
[1760566695591,5.5339481,111210.0,111200.0,0.29281611]
[1760566695995,5.5329481,111210.0,111200.0,0.17985611]
[1760566696216,5.5329481,111210.0,111200.0,0.29281611]
[1760566696416,5.5329481,111210.0,111200.0,0.17985611]
[1760566697040,5.5329481,111210.0,111200.0,0.29281611]
[1760566697242,5.14832094,111210.0,111200.0,0.17985611]
[1760566697599,5.14832094,111210.0,111200.0,0.29281611]
[1760566698160,5.14832094,111210.0,111200.0,0.17985611]
[1760566698584,5.14832094,111210.0,111200.0,0.11296]
[1760566699010,4.968481,111200.0,111190.0,0.56464949]
[1760566699355,4.968481,111200.0,111190.0,0.67760949]
[1760566699573,4.968481,111200.0,111190.0,0.56464949]
[1760566699963,4.968481,111200.0,111190.0,0.67760949]
[1760566700614,4.968481,111200.0,111190.0,0.56464949]
[1760566700757,4.968481,111200.0,111190.0,0.67760949]
[1760566701357,4.968481,111200.0,111190.0,0.56464949]
[1760566701602,4.968481,111200.0,111190.0,0.67760949]
[1760566702216,4.968481,111200.0,111190.0,0.56464949]
[1760566702664,4.968481,111200.0,111190.0,0.67760949]
[1760566703496,4.968481,111200.0,111190.0,0.56464949]
[1760566705413,4.968481,111200.0,111190.0,0.67760949]
[1760566706458,4.968481,111200.0,111190.0,0.56464949]
[1760566706669,4.968481,111200.0,111190.0,0.67760949]
[1760566706879,4.968481,111200.0,111190.0,0.56464949]
[1760566707292,4.968481,111200.0,111190.0,0.67760949]
[1760566707499,4.968481,111200.0,111190.0,0.56464949]
[1760566707838,4.968481,111200.0,111190.0,0.67760949]
[1760566708286,4.968481,111200.0,111190.0,0.56464949]
[1760566709053,4.968481,111200.0,111190.0,0.18002233]
[1760566709258,4.968481,111200.0,111190.0,0.67760949]
[1760566709712,4.968481,111200.0,111190.0,0.56464949]
[1760566709916,4.968481,111200.0,111190.0,0.67760949]
[1760566710131,4.968481,111200.0,111190.0,0.56464949]
[1760566710315,4.968481,111200.0,111190.0,0.67760949]
[1760566710516,4.968481,111200.0,111190.0,0.56464949]
[1760566710886,4.968481,111200.0,111190.0,0.67760949]
[1760566711086,4.968481,111200.0,111190.0,0.56464949]
[1760566711282,4.968481,111200.0,111190.0,0.67760949]
[1760566711922,4.968481,111200.0,111190.0,0.56464949]
[1760566712146,4.968481,111200.0,111190.0,0.67760949]
[1760566712858,4.968481,111200.0,111190.0,0.56464949]
[1760566714275,4.968481,111200.0,111190.0,0.67760949]
[1760566714607,4.968481,111200.0,111190.0,0.56464949]
[1760566715015,4.968481,111200.0,111190.0,0.67760949]
[1760566716072,4.968481,111200.0,111190.0,0.56464949]
[1760566716505,0.17984298,111210.0,111200.0,0.17985611]
[1760566716717,0.17984298,111210.0,111200.0,0.56448327]
[1760566716930,0.17984298,111210.0,111200.0,0.67744327]
[1760566717516,0.60105415,111220.0,111200.0,0.67744327]
[1760566717720,5.18490799,111220.0,111200.0,0.67744327]
[1760566717917,4.968481,111210.0,111200.0,0.56448327]
[1760566718318,4.968481,111210.0,111200.0,0.67744327]
[1760566718630,0.17983994,111210.0,111200.0,0.67744327]
[1760566719383,0.17983994,111210.0,111200.0,0.17985611]
[1760566719818,0.17983994,111210.0,111200.0,0.29281611]
[1760566720021,0.2068641,111210.0,111200.0,0.29281611]
[1760566720835,0.2068641,111210.0,111200.0,0.17985611]
[1760566721036,0.2068641,111210.0,111200.0,0.29281611]
[1760566721245,0.02702416,111210.0,111200.0,0.29281611]
[1760566721446,0.02702416,111210.0,111200.0,0.56448327]
[1760566721621,0.2068641,111210.0,111200.0,0.67744327]
[1760566722269,0.2068641,111210.0,111200.0,0.67680736]
[1760566722476,0.2068641,111210.0,111200.0,0.2921802]
[1760566725053,0.2068641,111210.0,111200.0,0.1792202]
[1760566725277,0.2068641,111210.0,111200.0,0.2921802]
[1760566726129,0.00058708,111220.0,111210.0,0.17983994]
[1760566726337,0.00058708,111220.0,111210.0,0.5644671]
[1760566726553,0.00058708,111220.0,111210.0,0.6774271]
[1760566727187,0.00058708,111220.0,111210.0,0.5644671]
[1760566727608,0.00058708,111220.0,111210.0,0.6774271]
[1760566728045,0.00058708,111220.0,111210.0,0.5644671]
[1760566728253,0.00058708,111220.0,111210.0,0.6774271]
[1760566728706,0.00058708,111220.0,111210.0,0.5644671]
[1760566728910,0.00058708,111220.0,111210.0,0.6774271]
[1760566729343,0.00058708,111220.0,111210.0,0.5644671]
[1760566729991,0.00058708,111220.0,111210.0,0.6774271]
[1760566730209,0.00058708,111220.0,111210.0,0.5644671]
[1760566730413,0.00058708,111220.0,111210.0,0.6774271]
[1760566730629,0.00058708,111220.0,111210.0,0.5644671]
[1760566730840,0.00058708,111220.0,111210.0,0.6774271]
[1760566731100,5.14828885,111230.0,111220.0,0.17982377]
[1760566731307,0.20682707,111230.0,111220.0,0.29274377]
[1760566731512,0.59145423,111230.0,111220.0,0.29274377]
[1760566732124,0.59145423,111230.0,111220.0,0.17982377]
[1760566732348,0.59145423,111230.0,111220.0,0.29274377]
[1760566732767,0.59145423,111230.0,111220.0,0.17982377]
[1760566733394,0.59145423,111230.0,111220.0,0.29274377]
[1760566734025,0.59145423,111230.0,111220.0,0.17982377]
[1760566734672,0.59145423,111230.0,111220.0,0.29274377]
[1760566735310,0.59145423,111230.0,111220.0,0.17982377]
[1760566735522,0.59145423,111230.0,111220.0,0.29274377]
[1760566736173,0.59145423,111230.0,111220.0,0.17982377]
[1760566736377,0.59145423,111230.0,111220.0,0.29274377]
[1760566736829,0.59204122,111230.0,111220.0,0.17982377]
[1760566737039,0.59204122,111230.0,111220.0,0.29274377]
[1760566737625,0.59204122,111230.0,111220.0,0.17982377]
[1760566737829,0.59204122,111230.0,111220.0,0.29274377]
[1760566738169,0.20741406,111230.0,111220.0,0.17982377]
[1760566738382,0.20741406,111230.0,111220.0,0.29274377]
[1760566739665,0.20741406,111230.0,111190.0,0.69158064]
[1760566739666,0.17983994,111210.0,111190.0,0.77594626]
[1760566739854,0.5644671,111210.0,111200.0,0.17985611]
[1760566740320,5.15729595,111220.0,111210.0,0.17983994]
[1760566740553,4.968481,111210.0,111200.0,0.67740327]
[1760566740744,4.968481,111210.0,111200.0,0.29277611]
[1760566740958,4.968481,111210.0,111200.0,0.17985611]
[1760566741175,4.968481,111210.0,111200.0,0.29277611]